fUSD/lending_fUSD_20240223
["ID","MTS","AMOUNT","RATE_DAILY","PERIOD"]
[315019538,1708732247841,-150.0,0.00049446,30]
[315019539,1708732247851,-150.0,0.00049451,7]
[315019540,1708732247863,-150.0,0.00049466,30]
[315019541,1708732247875,-150.0,0.00049466,30]
[315019542,1708732247886,-1500.0,0.0004947,7]
[315019543,1708732247895,-150.0,0.00049475,7]
[315019544,1708732247905,-150.0,0.00049481,30]
[315019545,1708732247915,-163.022408,0.00049498,47]
[315019546,1708732247924,-400.0,0.000495,2]
[315019547,1708732247933,-500.0,0.000495,2]
[315019548,1708732247946,-500.0,0.000495,2]
[315019549,1708732247957,-500.0,0.000495,2]
[315019550,1708732247967,-500.0,0.000495,2]
[315019551,1708732247978,-500.0,0.000495,2]
[315019552,1708732247987,-500.0,0.000495,2]
[315019553,1708732247997,-500.0,0.000495,2]
[315019554,1708732248007,-500.0,0.000495,2]
[315019555,1708732248016,-500.0,0.000495,2]
[315019556,1708732248025,-500.0,0.000495,2]
[315019557,1708732248035,-500.0,0.000495,2]
[315019558,1708732248044,-500.0,0.000495,2]
[315019559,1708732248054,-57899.03692934,0.000495,15]
[315019560,1708732248064,-2768.36670291,0.000495,10]
[315019561,1708732248073,-373.46943,0.000495,5]
[315019562,1708732248083,-3000.0,0.000495,47]
[315019563,1708732248093,-150.0,0.00049501,30]
[315019564,1708732248103,-150.0,0.00049502,7]
[315019565,1708732248112,-150.0,0.00049512,7]
[315019566,1708732248122,-150.0,0.00049522,7]
[315019567,1708732248131,-150.0,0.00049537,30]
[315019568,1708732248141,-150.0,0.00049554,7]
[315019569,1708732248151,-1493.87130824,0.00049555,120]
[315019570,1708732248161,-3569.46,0.00049564,120]
[315019571,1708732248170,-300.0,0.0004957,7]
[315019572,1708732248181,-150.0,0.00049573,30]
[315019573,1708732248190,-150.0,0.00049584,30]
[315019574,1708732248200,-774.14,0.00049589,3]
[315019575,1708732248210,-122158.28237495,0.00049598,90]
[315019576,1708732248220,-800.0,0.00049599,30]
[315019577,1708732248229,-151.0,0.000496,20]
[315019578,1708732248239,-150.0,0.00049608,30]
[315019579,1708732248249,-151.38611437,0.00049622,43]
[315019580,1708732248258,-1500.0,0.00049626,7]
[315019581,1708732248268,-150.0,0.00049644,30]
[315019582,1708732248277,-150.0,0.00049644,30]
[315019583,1708732248287,-150.0,0.0004965,7]
[315019584,1708732248297,-150.0,0.00049662,7]
[315019585,1708732248307,-1493.87130824,0.00049665,120]
[315019586,1708732248317,-150.0,0.00049679,30]
[315019587,1708732248327,-150.0,0.00049683,7]
[315019588,1708732248337,-150.0,0.00049688,30]
[315019589,1708732248348,-150.0,0.00049688,30]
[315019590,1708732248357,-150.0,0.0004969,7]
[315019591,1708732248368,-177000.0,0.000497,35]
[315019592,1708732248377,-150.0,0.00049704,7]
[315019593,1708732248387,-150.0,0.00049715,30]
[315019594,1708732248398,-150.0,0.00049723,30]
[315019595,1708732248408,-150.0,0.00049723,7]
[315019596,1708732248419,-465.0,0.0004975,12]
[315019597,1708732248429,-2000.0,0.0004975,5]
[315019598,1708732248439,-465.0,0.0004975,12]
[315019599,1708732248448,-465.0,0.0004975,12]
[315019600,1708732248458,-150.0,0.0004975,7]
[315019601,1708732248472,-1632.6221,0.0004975,5]
[315019602,1708732248482,-150.0,0.00049751,30]
[315019603,1708732248492,-150.0,0.00049757,7]
[315019604,1708732248502,-150.0,0.00049779,7]
[315019605,1708732248512,-150.0,0.00049786,30]
[315019606,1708732248522,-150.0,0.00049792,30]
[315019607,1708732248532,-1000.0,0.000498,120]
[315019608,1708732248542,-1000.0,0.000498,120]
[315019609,1708732248552,-695.06715846,0.000498,120]
[315019610,1708732248561,-150.0,0.00049822,30]
[315019611,1708732248571,-150.0,0.00049822,30]
[315019612,1708732248581,-150.0,0.00049822,7]
[315019613,1708732248590,-3269.2,0.00049829,117]
[315019614,1708732248600,-150.0,0.00049858,30]
[315019615,1708732248609,-150.0,0.00049858,7]
[315019616,1708732248619,-150.0,0.00049859,7]
[315019617,1708732248629,-1105.89,0.00049863,2]
[315019618,1708732248639,-1105.89,0.00049863,2]
[315019619,1708732248649,-1105.89,0.00049863,2]
[315019620,1708732248660,-1105.89,0.00049863,2]
[315019621,1708732248669,-1105.89,0.00049863,2]
[315019622,1708732248678,-1105.89,0.00049863,2]
[315019623,1708732248695,-1105.89,0.00049863,2]
[315019624,1708732248705,-1105.89,0.00049863,2]
[315019625,1708732248715,-1105.89,0.00049863,2]
[315019626,1708732248724,-1105.89,0.00049863,2]
[315019627,1708732248734,-1105.89,0.00049863,2]
[315019628,1708732248743,-1105.89,0.00049863,2]
[315019629,1708732248753,-1105.89,0.00049863,2]
[315019630,1708732248762,-1105.89,0.00049863,2]
[315019631,1708732248771,-1105.89,0.00049863,2]
[315019632,1708732248781,-1105.89,0.00049863,2]
[315019633,1708732248790,-1105.89,0.00049863,2]
[315019634,1708732248799,-1105.89,0.00049863,2]
[315019635,1708732248809,-1105.89,0.00049863,2]
[315019636,1708732248819,-1105.89,0.00049863,2]
[315019637,1708732248828,-1105.89,0.00049863,2]
[315019638,1708732248838,-1105.89,0.00049863,2]
[315019639,1708732248848,-1105.89,0.00049863,2]
[315019640,1708732248860,-1106.05012688,0.00049863,2]
[315019641,1708732248870,-105441.03688822,0.0004989,40]
[315019642,1708732248879,-150.0,0.00049892,7]
[315019643,1708732248889,-150.0,0.00049893,30]
[315019644,1708732248898,-150.0,0.00049895,7]
[315019645,1708732248908,-150.0,0.00049895,7]
[315019646,1708732248918,-150.0,0.00049896,30]
[315019647,1708732248927,-8582.47769033,0.000499,67]
[315019648,1708732248938,-1377.08004081,0.000499,11]
[315019649,1708732248948,-150.0,0.00049904,7]
[315019650,1708732248958,-508.26,0.00049909,2]
[315019651,1708732248967,-150.0,0.00049915,7]
[315019652,1708732248976,-150.0,0.00049927,7]
[315019653,1708732248986,-1081.18079568,0.00049927,35]
[315019654,1708732248995,-756.58155614,0.00049927,35]
[315019655,1708732249004,-1459.2715716,0.00049927,60]
[315019656,1708732249014,-664.40018803,0.00049927,30]
[315019657,1708732249024,-150.0,0.00049929,30]
[315019658,1708732249034,-206.44683543,0.00049959,7]
[315019659,1708732249043,-150.0,0.00049964,30]
[315019660,1708732249053,-400.0,0.0004997,3]
[315019661,1708732249063,-300.0,0.0004997,3]
[315019662,1708732249072,-200.0,0.00049987,49]
[315019663,1708732249081,-200.0,0.00049987,48]
[315019664,1708732249091,-219.9,0.0004999,120]
[315019665,1708732249101,-4187.0,0.0004999,120]
[315019666,1708732249110,-4187.0,0.0004999,120]
[315019667,1708732249120,-4187.0,0.0004999,120]
[315019668,1708732249129,-4187.0,0.0004999,120]
[315019669,1708732249139,-4187.0,0.0004999,120]
[315019670,1708732249148,-4187.0,0.0004999,120]
[315019671,1708732249158,-222.0,0.0004999,30]
[315019672,1708732249168,-222.0,0.0004999,30]
[315019673,1708732249178,-150.01,0.00049999,2]
[315019674,1708732249188,-4542.59883696,0.00049999,2]
[315019675,1708732249198,-4534257.11864301,0.0005,7]
[315019676,1708732249207,-20365.5978247,0.0005,7]
[315019677,1708732249217,-2999.99,0.0005,30]
[315019678,1708732249227,-3000.0,0.0005,30]
[315019679,1708732249236,-3000.0,0.0005,30]
[315019680,1708732249246,-3000.0,0.0005,30]
[315019681,1708732249255,-3027.02,0.0005,30]
[315019682,1708732249265,-14146.93807257,0.0005,2]
[315019683,1708732249275,-200000.0,0.0005,90]
[315019684,1708732249285,-200.72112392,0.0005,90]
[315019685,1708732249296,-503.31827605,0.0005,20]
[315019686,1708732249305,-3999.90784174,0.0005,20]
[315019687,1708732249315,-11260.0,0.0005,15]
[315019688,1708732249325,-1083.0,0.0005,60]
[315019689,1708732249335,-200.0,0.0005,120]
[315019690,1708732249345,-19305.05684096,0.0005,2]
[315019691,1708732249354,-49793.17245596,0.0005,4]
[315019692,1708732249364,-2128.78860792,0.0005,7]
[315019693,1708732249373,-5727.74072184,0.0005,7]
[315019694,1708732249383,-300.0,0.0005,120]
[315019695,1708732249393,-17533.85413613,0.0005,5]
[315019696,1708732249402,-4100.00975193,0.0005,120]
[315019697,1708732249412,-9870.53949526,0.0005,10]
[315019698,1708732249422,-685.23197072,0.0005,20]
[315019699,1708732249431,-77527.0,0.0005,11]
[315019700,1708732249441,-4582.26,0.0005,2]
[315019701,1708732249451,-1518.1266527,0.0005,4]
[315019702,1708732249460,-150.0,0.0005,27]
[315019703,1708732249473,-151.26,0.0005,30]
[315019704,1708732249483,-10000.0,0.0005,10]
[315019705,1708732249492,-1700.0,0.0005,77]
[315019706,1708732249502,-200.0,0.0005,25]
[315019707,1708732249511,-2200.0,0.0005,75]
[315019708,1708732249521,-500.0,0.0005,120]
[315019709,1708732249531,-200.0,0.0005,120]
[315019710,1708732249738,-2065.0,0.0005,30]
[315019711,1708732249748,-299.33,0.0005,27]
[315019712,1708732249757,-531.33139332,0.0005,15]
[315019713,1708732249768,-5000.0,0.0005,120]
[315019714,1708732249778,-293.67970759,0.0005,30]
[315019715,1708732249787,-300.0,0.0005,81]
[315019716,1708732249797,-150.0,0.0005,30]
[315019717,1708732249807,-150.0,0.0005,30]
[315019718,1708732249817,-150.0,0.0005,30]
[315019719,1708732249826,-20416.75781124,0.0005,120]
[315019720,1708732249836,-150.0,0.0005,30]
[315019721,1708732249846,-150.0,0.0005,30]
[315019722,1708732249856,-200.0,0.0005,27]
[315019723,1708732249870,-150.0,0.0005,30]
[315019724,1708732249879,-200.0,0.0005,27]
[315019725,1708732249889,-200.0,0.0005,27]
[315019726,1708732249898,-1705.744601,0.0005,25]
[315019727,1708732249912,-5751.250606,0.0005,81]
[315019728,1708732249921,-12186.12536773,0.0005,2]
[315019729,1708732249931,-31132.98652093,0.0005,30]
[315019730,1708732249942,-3348.0,0.0005,30]
[315019731,1708732249951,-5531.0,0.0005,30]
[315019732,1708732249962,-514.0,0.0005,30]
[315019733,1708732249972,-46550.0,0.0005,30]
[315019734,1708732249981,-150.0,0.0005,31]
[315019735,1708732249991,-238.908155,0.0005,31]
[315019736,1708732250001,-1000.0,0.0005,61]
[315019737,1708732250010,-36200.0,0.0005,120]
[315019738,1708732250019,-9258.66171968,0.0005,30]
[315019739,1708732250029,-1000.0,0.0005,37]
[315019740,1708732250040,-1000.0,0.0005,34]
[315019741,1708732250052,-1000.0,0.0005,27]
[315019742,1708732250062,-1000.0,0.0005,34]
[315019743,1708732250071,-882.621546,0.0005,31]
[315019744,1708732250081,-1154.3131659,0.00050013,2]
[315019745,1708732250091,-1744.0026958,0.00050013,2]
[315019746,1708732250100,-5091.3988205,0.00050013,2]
[315019747,1708732250110,-36624.8259457,0.00050013,2]
[315019748,1708732250119,-10729.428436,0.00050013,2]
[315019749,1708732250129,-177.0,0.00050047,28]
[315019750,1708732250138,-10000.0,0.000501,20]
[315019751,1708732250147,-151.0,0.000501,21]
[315019752,1708732250157,-8582.47769026,0.00050213,69]
[315019753,1708732250168,-500.0,0.0005025,120]
[315019754,1708732250177,-1493.87130824,0.00050281,120]
[315019755,1708732250186,-200.0,0.00050387,80]
[315019756,1708732250195,-204.0,0.00050396,40]
[315019757,1708732250205,-192.50466606,0.000504,120]
[315019758,1708732250215,-157.16346684,0.000504,120]
[315019759,1708732250225,-320.4084282,0.000504,120]
[315019760,1708732250235,-165.97268924,0.000504,120]
[315019761,1708732250244,-200.0,0.000504,2]
[315019762,1708732250254,-200.0,0.000504,2]
[315019763,1708732250264,-774.14,0.0005041,3]
[315019764,1708732250273,-1493.87130826,0.00050416,120]
[315019765,1708732250283,-179.0,0.00050486,120]
[315019766,1708732250292,-163.0,0.00050486,120]
[315019767,1708732250301,-500.0,0.000505,120]
[315019768,1708732250311,-200.0,0.000505,28]
[315019769,1708732250321,-200.0,0.000505,28]
[315019770,1708732250330,-8582.47769026,0.00050525,70]
[315019771,1708732250341,-151.0,0.000506,21]
[315019772,1708732250351,-19186.283151,0.00050684,30]
[315019773,1708732250361,-1254.228976,0.00050684,120]
[315019774,1708732250371,-425.506764,0.00050684,30]
[315019775,1708732250381,-1708.441318,0.00050684,30]
[315019776,1708732250390,-798.145712,0.00050684,120]
[315019777,1708732250400,-570.10408,0.00050684,120]
[315019778,1708732250410,-8721.037796,0.00050684,30]
[315019779,1708732250419,-912.166528,0.00050684,120]
[315019780,1708732250429,-24128.386586,0.00050684,30]
[315019781,1708732250439,-456.083264,0.00050684,120]
[315019782,1708732250449,-6976.830237,0.00050684,30]
[315019783,1708732250458,-342.062448,0.00050684,120]
[315019784,1708732250470,-5232.622677,0.00050684,30]
[315019785,1708732250480,-3488.415118,0.00050684,30]
[315019786,1708732250490,-1856.758307,0.00050684,30]
[315019787,1708732250499,-16679.053041,0.00050684,30]
[315019788,1708732250509,-889.362365,0.00050684,120]
[315019789,1708732250519,-9353.35399,0.00050684,30]
[315019790,1708732250529,-350.614009,0.00050684,120]
[315019791,1708732250538,-7638.198355,0.00050684,30]
[315019792,1708732250547,-10989.640071,0.00050684,30]
[315019793,1708732250556,-309.352726,0.00050684,120]
[315019794,1708732250566,-1636.836948,0.00050684,30]
[315019795,1708732250575,-2084.88163,0.00050684,30]
[315019796,1708732250585,-954.774794,0.00050684,30]
[315019797,1708732250595,-1169.169249,0.00050684,30]
[315019798,1708732250604,-1667.905304,0.00050684,30]
[315019799,1708732250613,-763.819835,0.00050684,30]
[315019800,1708732250623,-935.335399,0.00050684,30]
[315019801,1708732250632,-16161.890585,0.00050684,30]
[315019802,1708732250642,-2233.012272,0.00050684,30]
[315019803,1708732250651,-875.781417,0.00050684,120]
[315019804,1708732250661,-6087.435131,0.00050684,30]
[315019805,1708732250671,-11482.705503,0.00050684,30]
[315019806,1708732250680,-544.449396,0.00050684,120]
[315019807,1708732250690,-978.665559,0.00050684,30]
[315019808,1708732250699,-798.145712,0.00050684,120]
[315019809,1708732250708,-12144.195818,0.00050684,30]
[315019810,1708732250718,-1000.0,0.00050684,100]
[315019811,1708732250727,-666.0,0.00050684,2]
[315019812,1708732250736,-4069.757719,0.00050684,30]
[315019813,1708732250746,-5127.69371,0.00050684,30]
[315019814,1708732250755,-200.0,0.00050687,81]
[315019815,1708732250765,-178.43384898,0.000507,120]
[315019816,1708732250775,-2000.0,0.000507,2]
[315019817,1708732250784,-500.0,0.0005077,120]
[315019818,1708732250793,-7193.0,0.000508,120]
[315019819,1708732250803,-8582.47769026,0.00050838,72]
[315019820,1708732250812,-398.60802747,0.00050892,120]
[315019821,1708732250821,-252.1232235,0.000509,30]
[315019822,1708732250830,-56283.72848348,0.000509,15]
[315019823,1708732250840,-151.38611437,0.00050942,48]
[315019824,1708732250850,-207.75,0.0005095,30]
[315019825,1708732250861,-1277.4944949,0.00050965,2]
[315019826,1708732250870,-1930.1121297,0.00050965,2]
[315019827,1708732250880,-5634.7221504,0.00050965,2]
[315019828,1708732250889,-40533.2061556,0.00050965,2]
[315019829,1708732250899,-11837.4700641,0.00050965,2]
[315019830,1708732250909,-201.98,0.0005098,3]
[315019831,1708732250920,-163.0,0.0005098,120]
[315019832,1708732250930,-200.0,0.00050987,82]
[315019833,1708732250943,-195.0,0.0005099,3]
[315019834,1708732250952,-163.0,0.0005099,120]
[315019835,1708732250961,-100000.0,0.00051,51]
[315019836,1708732250971,-59255.08,0.00051,30]
[315019837,1708732250980,-1427.92248504,0.00051,30]
[315019838,1708732250990,-50191.44975558,0.00051,30]
[315019839,1708732250999,-62000.0,0.00051,120]
[315019840,1708732251009,-1337.0781126,0.00051,120]
[315019841,1708732251018,-10086.39727675,0.00051,30]
[315019842,1708732251027,-150.0,0.00051,29]
[315019843,1708732251036,-300.0,0.00051,51]
[315019844,1708732251045,-1184.95708697,0.00051,120]
[315019845,1708732251055,-500.0,0.00051,120]
[315019846,1708732251064,-500.0,0.00051,60]
[315019847,1708732251073,-26260.0,0.00051,120]
[315019848,1708732251083,-10000.0,0.00051,10]
[315019849,1708732251092,-1005.63685634,0.00051,14]
[315019850,1708732251101,-5008.3037602,0.00051,15]
[315019851,1708732251110,-200.0,0.00051,29]
[315019852,1708732251119,-200.0,0.00051,29]
[315019853,1708732251128,-177.0,0.00051028,28]
[315019854,1708732251137,-151.0,0.000511,22]
[315019855,1708732251146,-8582.47769026,0.0005115,74]
[315019856,1708732251155,-774.14,0.00051232,3]
[315019857,1708732251166,-200.0,0.00051387,83]
[315019858,1708732251175,-8582.47769026,0.00051463,75]
[315019859,1708732251185,-500.0,0.000515,120]
[315019860,1708732251194,-1033.7146254,0.000515,120]
[315019861,1708732251203,-10000.0,0.000515,10]
[315019862,1708732251213,-481.3680176,0.000515,2]
[315019863,1708732251222,-200.0,0.000515,29]
[315019864,1708732251232,-200.0,0.000515,29]
[315019865,1708732251241,-9593.141575,0.00051506,30]
[315019866,1708732251250,-627.114488,0.00051506,120]
[315019867,1708732251260,-212.753382,0.00051506,30]
[315019868,1708732251269,-854.220659,0.00051506,30]
[315019869,1708732251278,-399.072856,0.00051506,120]
[315019870,1708732251287,-285.05204,0.00051506,120]
[315019871,1708732251297,-4360.518898,0.00051506,30]
[315019872,1708732251306,-456.083264,0.00051506,120]
[315019873,1708732251315,-12064.193293,0.00051506,30]
[315019874,1708732251324,-228.041632,0.00051506,120]
[315019875,1708732251333,-3488.415118,0.00051506,30]
[315019876,1708732251343,-171.031224,0.00051506,120]
[315019877,1708732251352,-2616.311338,0.00051506,30]
[315019878,1708732251362,-1744.207559,0.00051506,30]
[315019879,1708732251371,-928.379153,0.00051506,30]
[315019880,1708732251381,-8339.52652,0.00051506,30]
[315019881,1708732251391,-444.681182,0.00051506,120]
[315019882,1708732251401,-4676.676995,0.00051506,30]
[315019883,1708732251412,-175.307004,0.00051506,120]
[315019884,1708732251422,-3819.099177,0.00051506,30]
[315019885,1708732251432,-5494.820035,0.00051506,30]
[315019886,1708732251442,-154.676363,0.00051506,120]
[315019887,1708732251452,-818.418474,0.00051506,30]
[315019888,1708732251462,-1042.440815,0.00051506,30]
[315019889,1708732251473,-477.387397,0.00051506,30]
[315019890,1708732251484,-584.584624,0.00051506,30]
[315019891,1708732251493,-833.952652,0.00051506,30]
[315019892,1708732251503,-381.909917,0.00051506,30]
[315019893,1708732251513,-467.667699,0.00051506,30]
[315019894,1708732251522,-8080.945292,0.00051506,30]
[315019895,1708732251533,-1116.506136,0.00051506,30]
[315019896,1708732251542,-437.890708,0.00051506,120]
[315019897,1708732251551,-3043.717565,0.00051506,30]
[315019898,1708732251561,-272.224698,0.00051506,120]
[315019899,1708732251571,-5741.352751,0.00051506,30]
[315019900,1708732251581,-489.332779,0.00051506,30]
[315019901,1708732251591,-399.072856,0.00051506,120]
[315019902,1708732251600,-6072.097909,0.00051506,30]
[315019903,1708732251610,-2034.878859,0.00051506,30]
[315019904,1708732251621,-2563.846855,0.00051506,30]
[315019905,1708732251630,-2122.03007977,0.000516,60]
[315019906,1708732251640,-17534.0,0.000516,120]
[315019907,1708732251650,-151.0,0.000516,22]
[315019908,1708732251659,-200.0,0.00051687,84]
[315019909,1708732251670,-333774.30730299,0.0005169,120]
[315019910,1708732251680,-8582.47769026,0.00051775,77]
[315019911,1708732251690,-300.0,0.000518,120]
[315019912,1708732251699,-390.0,0.000518,120]
[315019913,1708732251708,-507.0,0.000518,120]
[315019914,1708732251718,-659.0,0.000518,120]
[315019915,1708732251727,-856.0,0.000518,120]
[315019916,1708732251735,-1113.0,0.000518,120]
[315019917,1708732251745,-674.0,0.000518,120]
[315019918,1708732251754,-1400.6758239,0.00051829,2]
[315019919,1708732251763,-2116.2215636,0.00051829,2]
[315019920,1708732251773,-6178.0454803,0.00051829,2]
[315019921,1708732251783,-44441.5863654,0.00051829,2]
[315019922,1708732251791,-12945.5116922,0.00051829,2]
[315019923,1708732251801,-9859.91337884,0.00051848,31]
[315019924,1708732251810,-1523.8571529,0.00051864,2]
[315019925,1708732251819,-2302.3309974,0.00051864,2]
[315019926,1708732251829,-6721.3688103,0.00051864,2]
[315019927,1708732251839,-48349.9665753,0.00051864,2]
[315019928,1708732251849,-14053.5533203,0.00051864,2]
[315019929,1708732251861,-65478.76,0.0005187,15]
[315019930,1708732251871,-516536.43984138,0.000519,45]
[315019931,1708732251879,-170.119999,0.000519,90]
[315019932,1708732251889,-452.45,0.0005198,7]
[315019933,1708732251900,-200.0,0.00051987,85]
[315019934,1708732251910,-444.0,0.0005199,7]
[315019935,1708732251919,-204.0,0.00051997,43]
[315019936,1708732251930,-265.84407575,0.00051999,10]
[315019937,1708732251941,-100000.0,0.00052,52]
[315019938,1708732251951,-150.0,0.00052,30]
[315019939,1708732251962,-20325.0,0.00052,120]
[315019940,1708732251971,-762.0,0.00052,120]
[315019941,1708732251980,-796.42820883,0.00052,30]
[315019942,1708732251989,-2000.0,0.00052,30]
[315019943,1708732251998,-500.0,0.00052,120]
[315019944,1708732252046,-264.53716443,0.00052,30]
[315019945,1708732252056,-2166.2,0.00052,120]
[315019946,1708732252066,-321.85012536,0.00052,30]
[315019947,1708732252075,-3000.0,0.00052,60]
[315019948,1708732252085,-2000.0,0.00052,90]
[315019949,1708732252096,-15139.2784196,0.00052,5]
[315019950,1708732252108,-827.72236505,0.00052,120]
[315019951,1708732252119,-3714.0,0.00052,120]
[315019952,1708732252129,-10000.0,0.00052,10]
[315019953,1708732252139,-2000.0,0.00052,120]
[315019954,1708732252150,-160.0,0.00052,120]
[315019955,1708732252162,-160.0,0.00052,120]
[315019956,1708732252171,-315.89,0.00052,120]
[315019957,1708732252181,-64494.97,0.00052,120]
[315019958,1708732252189,-250.0,0.00052,120]
[315019959,1708732252199,-3000.0,0.00052,59]
[315019960,1708732252209,-200.0,0.00052,30]
[315019961,1708732252217,-200.0,0.00052,30]
[315019962,1708732252227,-177.0,0.0005201,28]
[315019963,1708732252247,-500.0,0.00052054,30]
[315019964,1708732252259,-500.0,0.00052054,30]
[315019965,1708732252268,-500.0,0.00052054,30]
[315019966,1708732252277,-500.0,0.00052054,30]
[315019967,1708732252287,-500.0,0.00052054,30]
[315019968,1708732252296,-500.0,0.00052054,30]
[315019969,1708732252305,-500.0,0.00052054,30]
[315019970,1708732252315,-500.0,0.00052054,30]
[315019971,1708732252324,-534.20853987,0.00052054,30]
[315019972,1708732252333,-774.14,0.00052054,120]
[315019973,1708732252342,-3000.0,0.00052054,120]
[315019974,1708732252351,-500.0,0.00052054,120]
[315019975,1708732252361,-500.0,0.00052054,120]
[315019976,1708732252370,-500.0,0.00052054,120]
[315019977,1708732252380,-500.0,0.00052054,120]
[315019978,1708732252389,-500.0,0.00052054,120]
[315019979,1708732252398,-500.0,0.00052054,120]
[315019980,1708732252407,-500.0,0.00052054,120]
[315019981,1708732252417,-156.74884915,0.00052054,120]
[315019982,1708732252428,-1000.0,0.00052054,110]
[315019983,1708732252438,-8582.47769026,0.00052088,79]
[315019984,1708732252448,-299.786716,0.000521,23]
[315019985,1708732252457,-508.26,0.00052173,2]
[315019986,1708732252467,-151.38611437,0.00052261,53]
[315019987,1708732252477,-337.04614115,0.000523,7]
[315019988,1708732252487,-500.0,0.00052328,30]
[315019989,1708732252496,-153.11,0.00052328,30]
[315019990,1708732252506,-153.11,0.00052328,30]
[315019991,1708732252515,-500.0,0.00052328,30]
[315019992,1708732252525,-500.0,0.00052328,30]
[315019993,1708732252534,-500.0,0.00052328,30]
[315019994,1708732252543,-500.0,0.00052328,30]
[315019995,1708732252554,-200.0,0.00052387,86]
[315019996,1708732252563,-8582.47769026,0.000524,80]
[315019997,1708732252573,-1647.0384819,0.00052454,2]
[315019998,1708732252582,-2488.4404313,0.00052454,2]
[315019999,1708732252591,-7264.6921402,0.00052454,2]
[315020000,1708732252601,-52258.3467852,0.00052454,2]
[315020001,1708732252610,-15161.5949484,0.00052454,2]
[315020002,1708732252620,-1770.2198109,0.00052464,2]
[315020003,1708732252629,-2674.5498652,0.00052464,2]
[315020004,1708732252639,-7808.0154701,0.00052464,2]
[315020005,1708732252648,-56166.726995,0.00052464,2]
[315020006,1708732252658,-16269.6365766,0.00052464,2]
[315020007,1708732252668,-16313.35005276,0.0005247,120]
[315020008,1708732252677,-381184.57,0.0005249,120]
[315020009,1708732252686,-6191.76669557,0.000525,60]
[315020010,1708732252695,-208.8,0.000525,120]
[315020011,1708732252704,-700000.0,0.000525,60]
[315020012,1708732252713,-10052.99194613,0.000525,60]
[315020013,1708732252723,-250.0,0.000525,120]
[315020014,1708732252732,-151.0,0.000525,120]
[315020015,1708732252741,-200.0,0.000525,2]
[315020016,1708732252751,-151.0,0.000525,120]
[315020017,1708732252761,-151.0,0.000525,120]
[315020018,1708732252770,-151.0,0.000525,2]
[315020019,1708732252779,-217.583966,0.000525,120]
[315020020,1708732252789,-151.0,0.000525,7]
[315020021,1708732252799,-217.583966,0.000525,120]
[315020022,1708732252808,-151.0,0.000525,120]
[315020023,1708732252817,-151.0,0.000525,120]
[315020024,1708732252827,-151.0,0.000525,120]
[315020025,1708732252836,-151.0,0.000525,120]
[315020026,1708732252845,-151.0,0.000525,120]
[315020027,1708732252855,-151.0,0.000525,120]
[315020028,1708732252870,-12186.12536773,0.000525,2]
[315020029,1708732252879,-151.0,0.000525,120]
[315020030,1708732252889,-151.0,0.000525,120]
[315020031,1708732252898,-151.0,0.000525,120]
[315020032,1708732252909,-337.37092596,0.000525,2]
[315020033,1708732252920,-514.0,0.000525,30]
[315020034,1708732252929,-46550.0,0.000525,30]
[315020035,1708732252939,-163.0,0.000525,30]
[315020036,1708732252948,-151.0,0.000525,120]
[315020037,1708732252958,-151.0,0.000525,120]